bitfinex/quotes_SOLUSD_20250721
["timestamp","ask_amount","ask_price","bid_price","bid_amount"]
[1753062419062,3.533389,179.26,179.25,127.48]
[1753062420289,4.243389,179.26,179.25,87.5]
[1753062420488,4.243389,179.26,179.25,127.46]
[1753062422272,4.243389,179.26,179.25,87.5]
[1753062423693,9.82187834,179.26,179.25,87.5]
[1753062424186,9.82187834,179.26,179.2,87.5]
[1753062424494,3.533389,179.21,179.2,87.5]
[1753062424787,3.533389,179.21,179.2,127.44]
[1753062425802,4.243389,179.21,179.2,87.5]
[1753062425974,13.35682375,179.21,179.17,0.03]
[1753062426170,3.533389,179.18,179.17,0.03]
[1753062426671,4.243389,179.18,179.17,0.03]
[1753062427109,4.243389,179.18,179.16,39.97]
[1753062427110,4.243389,179.18,179.16,0.03]
[1753062427277,4.243389,179.17,179.16,0.03]
[1753062428287,4.243389,179.17,179.13,87.53]
[1753062428288,9.82468051,179.17,179.13,87.53]
[1753062428615,3.533389,179.14,179.13,87.53]
[1753062428907,4.243389,179.14,179.13,0.03]
[1753062431214,6.46799714,179.14,179.13,0.03]
[1753062432817,12.05022333,179.14,179.12,0.03]
[1753062433108,6.46799714,179.13,179.12,0.03]
[1753062435290,0.71,179.16,179.12,39.97]
[1753062435700,0.71,179.18,179.13,0.71]
[1753062435908,0.71,179.21,179.14,45.52216187]
[1753062436113,5.75799714,179.18,179.15,0.71]
[1753062436326,5.75799714,179.18,179.16,40.65]
[1753062436616,5.75799714,179.17,179.16,39.94]
[1753062440321,5.75799714,179.17,179.16,40.65]
[1753062440720,5.75799714,179.17,179.13,1.641]
[1753062441021,5.75799714,179.14,179.12,94.1658]
[1753062441321,5.75799714,179.13,179.12,94.1658]
[1753062441514,5.75799714,179.13,179.12,87.53]
[1753062442011,5.75799714,179.13,179.12,127.45]
[1753062442591,5.75799714,179.15,179.12,133.74284948]
[1753062442800,5.75799714,179.15,179.13,0.71]
[1753062443003,5.75799714,179.15,179.14,40.63]
[1753062443414,0.71,179.2,179.14,40.63]
[1753062443606,0.71,179.2,179.14,128.13]
[1753062444139,5.75799714,179.19,179.15,6.9065]
[1753062444289,5.75799714,179.2,179.16,40.63]
[1753062444489,5.75799714,179.2,179.16,39.92]
[1753062444693,5.75799714,179.2,179.17,0.71]
[1753062444893,5.75799714,179.19,179.18,40.63]
[1753062445217,5.75799714,179.19,179.18,128.13]
[1753062445928,16.78468397,179.28,179.18,128.13]
[1753062446097,5.75799714,179.22,179.19,0.71]
[1753062446301,5.75799714,179.22,179.2,39.92]
[1753062446522,5.75799714,179.21,179.2,39.92]
[1753062447499,5.75799714,179.23,179.2,40.63]
[1753062447801,5.75799714,179.23,179.21,0.71]
[1753062447996,5.75799714,179.23,179.22,39.9]
[1753062448817,5.75799714,179.24,179.22,40.61]
[1753062449017,5.75799714,179.24,179.23,0.71]
[1753062449409,5.75799714,179.24,179.22,39.9]
[1753062449723,5.75799714,179.23,179.22,39.9]
[1753062449896,5.75799714,179.23,179.22,127.4]
[1753062450102,5.75799714,179.24,179.22,128.11]
[1753062450300,5.75799714,179.23,179.22,128.11]
[1753062450918,5.75799714,179.24,179.22,128.11]
[1753062451119,5.75799714,179.24,179.22,127.4]
[1753062452111,0.71,179.29,179.23,0.71]
[1753062452297,5.75799714,179.25,179.24,39.9]
[1753062452502,0.71,179.29,179.24,127.4]
[1753062452796,5.75799714,179.25,179.24,127.4]
[1753062453104,5.75799714,179.25,179.24,128.11]
[1753062453519,5.75799714,179.25,179.24,127.4]
[1753062454040,5.75799714,179.25,179.24,87.5]
[1753062454227,5.75799714,179.25,179.24,128.09]
[1753062454418,5.75799714,179.26,179.24,128.09]
[1753062454939,0.71,179.29,179.24,128.09]
[1753062455143,5.75799714,179.26,179.24,128.09]
[1753062456112,5.75799714,179.25,179.24,128.09]
[1753062456308,5.75799714,179.25,179.24,127.38]
[1753062457037,5.81799714,179.25,179.24,127.38]
[1753062457339,3.58698872,179.25,179.24,127.38]
[1753062458202,0.06,179.25,179.24,127.38]
[1753062458812,0.06,179.25,179.24,128.09]
[1753062459538,0.06,179.25,179.24,133.6691118]
[1753062459902,0.06,179.25,179.24,155.54958449]
[1753062460105,0.06,179.25,179.24,303.54958449]
[1753062460340,0.06,179.29,179.24,320.29567418]
[1753062460649,0.06,179.29,179.27,26.0]
[1753062460808,3.52698872,179.28,179.27,26.0]
[1753062461004,3.52698872,179.28,179.25,87.5]
[1753062461321,5.74768658,179.26,179.25,87.5]
[1753062461519,5.74768658,179.26,179.25,127.36]
[1753062463326,5.80768658,179.29,179.25,133.63879372]
[1753062463530,0.06,179.29,179.26,1.25784893]
[1753062463738,0.06,179.29,179.27,40.56]
[1753062464639,5.74768658,179.28,179.26,0.55784893]
[1753062464839,5.74768658,179.27,179.25,87.5]
[1753062465041,5.74768658,179.26,179.25,87.5]
[1753062465630,5.74768658,179.26,179.25,26.0]
[1753062465840,5.74768658,179.26,179.25,65.84]
[1753062466733,6.45768658,179.26,179.2,148.7]
[1753062466936,5.74768658,179.21,179.2,88.2]
[1753062467123,5.74768658,179.22,179.2,128.04]
[1753062467316,5.74768658,179.21,179.2,127.34]
[1753062469057,0.71,179.27,179.2,128.04]
[1753062469225,5.74768658,179.22,179.2,128.04]
[1753062470253,26.0,179.24,179.21,0.7]
[1753062470554,5.74768658,179.24,179.22,40.54]
[1753062470755,5.74768658,179.24,179.23,39.84]
[1753062471636,26.0,179.27,179.23,40.54]
[1753062471841,0.06,179.29,179.24,0.7]
[1753062472131,5.74768658,179.26,179.25,39.84]
[1753062474017,6.45768658,179.26,179.25,39.84]
[1753062474438,5.74768658,179.26,179.25,39.84]
[1753062474835,6.45768658,179.26,179.25,39.84]
[1753062480538,5.74768658,179.26,179.25,40.54]
[1753062482029,5.74768658,179.26,179.25,39.84]
[1753062483951,0.06,179.29,179.25,128.04]
[1753062484166,0.06,179.29,179.27,1.6621]
[1753062484331,0.06,179.29,179.28,40.3777867]
[1753062484531,0.06,179.29,179.28,41.0777867]
[1753062484761,5.80768658,179.29,179.27,89.1621]
[1753062485068,5.74768658,179.28,179.27,89.1621]
[1753062485230,5.74768658,179.28,179.27,128.9621]
[1753062485431,5.80768658,179.29,179.27,128.9621]
[1753062485654,5.74768658,179.28,179.27,128.9621]
[1753062485856,6.45768658,179.28,179.22,89.0817]
[1753062486155,5.74768658,179.23,179.22,89.0817]
[1753062486329,5.74768658,179.23,179.22,42.0817]
[1753062486530,5.74768658,179.24,179.22,42.0817]
[1753062487044,5.74768658,179.26,179.23,0.7]
[1753062487261,5.74768658,179.26,179.24,39.8]
[1753062488763,5.74768658,179.25,179.24,39.8]
[1753062489169,6.45768658,179.25,179.24,39.8]
[1753062489479,5.74768658,179.25,179.24,39.8]
[1753062489656,6.45768658,179.25,179.24,127.3]
[1753062490050,6.45768658,179.25,179.24,39.8]
[1753062491875,6.45768658,179.25,179.23,39.8]
[1753062492080,6.45768658,179.24,179.23,39.8]
[1753062492785,5.74768658,179.24,179.23,39.8]
[1753062494174,6.40768658,179.24,179.23,39.8]
[1753062496767,0.66,179.27,179.23,39.8]
[1753062496974,5.74768658,179.26,179.24,0.68]
[1753062497160,5.74768658,179.26,179.25,39.78]
[1753062497566,5.74768658,179.27,179.25,40.46]
[1753062497974,0.06,179.29,179.25,127.28]
[1753062498179,5.74768658,179.26,179.25,127.28]
[1753062501373,5.74768658,179.26,179.25,127.31]
[1753062501573,5.80768658,179.26,179.25,127.31]
[1753062504009,6.46768658,179.26,179.25,127.31]
[1753062505002,6.46768658,179.26,179.25,0.03]
[1753062505181,6.46768658,179.26,179.25,39.79]
[1753062505693,6.46768658,179.26,179.21,0.03]
[1753062505694,28.83085989,179.26,179.21,0.03]
[1753062506008,5.74768658,179.22,179.21,0.03]
[1753062506608,6.40768658,179.22,179.21,0.03]
[1753062508805,5.74768658,179.22,179.21,0.03]
[1753062509399,5.74768658,179.23,179.21,0.71]
[1753062509602,5.74768658,179.23,179.22,39.76]
[1753062510284,5.74768658,179.24,179.22,39.76]
[1753062510487,5.74768658,179.25,179.23,0.68]
[1753062510698,5.74768658,179.25,179.24,39.76]
[1753062514019,6.40768658,179.25,179.21,0.03]
[1753062514183,5.74768658,179.22,179.21,0.03]
[1753062514617,6.40768658,179.22,179.21,0.03]
[1753062515111,11.98742098,179.22,179.21,0.03]
[1753062515290,6.40768658,179.22,179.21,0.03]
[1753062516318,5.74768658,179.22,179.21,0.03]
[1753062517508,6.40768658,179.22,179.21,0.03]
[1753062518288,11.98742098,179.22,179.21,0.03]
[1753062518486,11.98742098,179.22,179.18,39.76]
[1753062518806,5.74768658,179.19,179.18,39.76]
[1753062519111,6.40768658,179.19,179.18,39.76]
[1753062521415,12.15537316,179.19,179.13,0.03]
[1753062521583,5.74768658,179.14,179.13,0.03]
[1753062522719,6.40768658,179.14,179.13,0.03]
[1753062524315,5.74768658,179.14,179.13,0.03]
[1753062526027,6.45768658,179.14,179.13,0.03]
[1753062527628,5.74768658,179.14,179.13,0.03]
[1753062528727,6.45768658,179.14,179.13,0.03]
[1753062529407,6.45768658,179.14,179.12,0.03]
[1753062529601,6.45768658,179.13,179.12,0.03]
[1753062530815,5.74768658,179.13,179.12,0.03]
[1753062531024,6.45768658,179.13,179.12,0.03]
[1753062532213,28.82490837,179.13,179.12,0.03]
[1753062533127,23.24237055,179.13,179.12,0.03]
[1753062533324,6.45768658,179.13,179.12,0.03]
[1753062533929,5.74768658,179.13,179.12,0.03]
[1753062535019,6.45768658,179.13,179.12,0.03]
[1753062540214,17.49468397,179.19,179.12,0.73]
[1753062540520,5.74768658,179.18,179.15,31.5818503]
[1753062540730,5.74768658,179.21,179.19,32.1277]
[1753062541031,5.74768658,179.23,179.2,42.0467]
[1753062541439,0.06,179.25,179.2,42.0467]
[1753062541440,5.74768658,179.22,179.2,42.0467]
[1753062541632,0.06,179.25,179.21,0.7]
[1753062541804,5.74768658,179.23,179.21,0.7]
[1753062542439,0.06,179.25,179.2,41.3467]
[1753062542647,5.74768658,179.23,179.2,41.3467]
[1753062542815,0.06,179.25,179.22,5.74768658]
[1753062543015,0.06,179.25,179.24,26.0]
[1753062543545,0.06,179.25,179.24,26.7]
[1753062545233,0.06,179.25,179.24,32.2791118]
[1753062545536,0.06,179.25,179.24,26.7]
[1753062545942,0.06,179.25,179.24,0.7]
[1753062547945,0.06,179.25,179.24,88.2]
[1753062548635,0.06,179.25,179.24,93.7791118]
[1753062549241,0.06,179.26,179.25,16.78468397]
[1753062549439,0.06,179.26,179.25,63.4902506]
[1753062549641,0.06,179.29,179.28,26.0]
[1753062549828,0.06,179.3,179.28,159.50547328]
[1753062550028,0.06,179.3,179.29,6.44768658]
[1753062551347,0.06,179.3,179.29,12.02524249]
[1753062551549,0.06,179.3,179.29,12.58299808]
[1753062552344,0.06,179.34,179.32,26.0]
[1753062552541,0.06,179.34,179.32,71.98534885]
[1753062552750,0.06,179.34,179.32,72.68534885]
[1753062553227,0.06,179.34,179.32,89.47003282]
[1753062553425,0.06,179.34,179.32,182.54665561]
[1753062553756,0.06,179.34,179.33,16.78468397]
[1753062553978,0.06,179.37,179.36,42.78468397]
[1753062554261,0.06,179.37,179.36,96.75190846]
[1753062554424,0.06,179.37,179.36,97.40190846]
[1753062554741,0.1,179.43,179.41,26.0]
[1753062554950,0.1,179.43,179.42,40.23735146]
[1753062555261,0.1,179.43,179.42,128.32735146]
[1753062555427,0.1,179.43,179.42,139.09120123]
[1753062557123,0.1,179.43,179.42,155.8758852]
[1753062558641,0.1,179.43,179.42,87.44]
[1753062558852,0.1,179.43,179.42,127.08]
[1753062559040,0.1,179.43,179.42,153.73]
[1753062559244,0.1,179.43,179.42,127.73]
[1753062559565,0.1,179.43,179.42,153.08]
[1753062559738,0.1,179.43,179.42,39.64]
[1753062559918,0.1,179.43,179.42,40.29]
[1753062560760,0.1,179.43,179.42,46.03768658]
[1753062560961,0.1,179.43,179.42,150.26237055]
[1753062561328,0.1,179.43,179.42,144.51468397]
[1753062561632,0.1,179.43,179.42,155.8358852]
[1753062562351,0.1,179.43,179.42,162.1582852]
[1753062563440,0.1,179.43,179.42,156.41059862]
[1753062563653,0.1,179.43,179.42,162.1582852]
[1753062564067,0.1,179.43,179.42,116.77059862]
[1753062564271,0.1,179.43,179.42,162.1382852]
[1753062566048,0.1,179.43,179.42,74.6982852]
[1753062567079,0.1,179.43,179.42,76.2596852]
[1753062567450,0.06,179.47,179.43,87.4]
[1753062567655,0.06,179.47,179.46,26.0]
[1753062567859,0.06,179.47,179.46,65.6]
[1753062570181,6.47768658,179.47,179.43,87.4]
[1753062570476,6.41768658,179.46,179.44,39.6]
[1753062570862,0.06,179.47,179.44,40.80728934]
[1753062571058,0.06,179.47,179.45,0.65]
[1753062571380,0.06,179.47,179.46,39.6]
[1753062572773,0.06,179.47,179.46,127.0]
[1753062574668,6.47768658,179.47,179.46,87.4]
[1753062574877,6.47768658,179.47,179.46,127.0]
[1753062576155,5.80768658,179.47,179.46,127.0]
[1753062576360,6.47768658,179.47,179.46,87.4]
[1753062576587,6.47768658,179.47,179.46,127.0]
[1753062578185,0.73,179.47,179.46,127.0]
[1753062578367,6.47768658,179.47,179.46,127.0]
[1753062578684,5.80768658,179.47,179.46,127.0]
[1753062578858,0.06,179.47,179.46,40.25]
[1753062579374,0.06,179.47,179.46,45.82227237]
[1753062579681,0.06,179.51,179.47,50.23468397]
[1753062579884,0.06,179.51,179.5,5.74768658]
[1753062580060,0.06,179.51,179.5,39.58]
[1753062581284,0.06,179.51,179.5,40.23]
[1753062581674,0.06,179.51,179.5,42.30889959]
[1753062584691,0.06,179.51,179.5,2.72889959]
[1753062584891,0.06,179.51,179.5,39.58]
[1753062586102,0.06,179.51,179.5,54.34706029]
[1753062586608,0.06,179.51,179.5,54.90416335]
[1753062587113,0.06,179.51,179.5,142.30416335]
[1753062587264,0.06,179.51,179.5,141.74706029]
[1753062587887,0.06,179.51,179.5,135.99937371]
[1753062588088,0.06,179.51,179.5,141.74706029]
[1753062588894,0.06,179.51,179.5,135.99937371]
[1753062589392,1e-08,179.51,179.5,104.58174426]
[1753062589595,0.06,179.59,179.5,104.58174426]
[1753062589596,0.06,179.59,179.54,26.0]
[1753062589888,0.06,179.59,179.55,39.56]
[1753062590083,0.06,179.59,179.55,40.28]
[1753062590391,0.06,179.59,179.56,0.72]
[1753062590564,0.06,179.59,179.57,39.56]
[1753062591201,0.06,179.59,179.58,0.72]
[1753062591377,0.06,179.59,179.58,7.3176]
[1753062591565,0.06,179.59,179.58,13.06528658]
[1753062591990,0.06,179.59,179.58,7.3176]
[1753062592181,0.06,179.59,179.58,6.5976]
[1753062592387,0.06,179.59,179.58,46.1576]
[1753062592587,0.06,179.59,179.58,46.8776]
[1753062592889,0.06,179.59,179.58,52.44614883]
[1753062593077,0.06,179.59,179.58,197.96217426]
[1753062593400,0.06,179.59,179.58,197.40531938]
[1753062593769,0.06,179.59,179.58,191.6576328]
[1753062593974,0.06,179.59,179.58,197.40531938]
[1753062595195,0.06,179.59,179.58,163.95531938]
[1753062597188,0.06,179.59,179.58,161.71869742]
[1753062597667,0.06,179.59,179.58,158.2076328]
[1753062597870,0.06,179.59,179.58,161.71869742]
[1753062599479,0.06,179.59,179.58,157.4876328]
[1753062599682,0.06,179.59,179.58,117.9276328]
[1753062599902,0.06,179.59,179.58,160.97869742]
[1753062600276,0.06,179.59,179.55,87.4]
[1753062600498,0.66,179.58,179.52,87.4]
[1753062600707,0.66,179.58,179.53,39.54]
[1753062600876,3.51106462,179.55,179.54,65.54]
[1753062601077,0.66,179.58,179.54,39.54]
[1753062601282,0.06,179.59,179.56,3.51106462]
[1753062601482,0.06,179.59,179.55,0.55694792]
[1753062601810,0.66,179.58,179.54,87.4]
[1753062602100,0.66,179.58,179.55,39.54]
[1753062602302,0.66,179.58,179.5,2.72834307]
[1753062602515,0.66,179.58,179.48,111.99848397]
[1753062602516,0.66,179.58,179.51,39.54]
[1753062602681,0.66,179.58,179.51,65.54]
[1753062602882,3.51106462,179.53,179.51,39.54]
[1753062603099,4.17106462,179.53,179.51,39.54]
[1753062603315,0.66,179.52,179.51,39.54]
[1753062603609,0.66,179.52,179.51,65.54]
[1753062604323,5.72948828,179.53,179.51,65.54]
[1753062604681,6.38948828,179.53,179.51,65.54]
[1753062604979,6.38948828,179.52,179.51,65.54]
[1753062605603,6.38948828,179.52,179.51,39.54]
[1753062605792,6.38948828,179.52,179.44,88.926]
[1753062606115,5.72948828,179.49,179.48,26.0]
[1753062606419,6.38948828,179.49,179.48,65.54]
[1753062606580,0.66,179.52,179.48,65.54]
[1753062607008,6.38948828,179.52,179.48,65.54]
[1753062607316,5.72948828,179.51,179.48,65.54]
[1753062608112,5.72948828,179.51,179.48,71.11155376]
[1753062608912,5.72948828,179.51,179.48,158.51155376]
[1753062609812,5.72948828,179.51,179.48,158.54155376]
[1753062610014,0.66,179.55,179.48,164.27104204]
[1753062610219,5.72948828,179.55,179.52,26.0]
[1753062610386,6.38948828,179.55,179.53,39.54]
[1753062610893,6.38948828,179.54,179.53,39.54]
[1753062613510,6.38948828,179.54,179.5,113.4]
[1753062613693,5.72948828,179.51,179.5,113.4]
[1753062613888,6.42948828,179.51,179.5,65.54]
[1753062615289,5.72948828,179.51,179.5,65.54]
[1753062615492,6.42948828,179.51,179.5,65.54]
[1753062615691,6.42948828,179.51,179.5,39.54]
[1753062617997,12.00024265,179.51,179.49,39.54]
[1753062618183,6.42948828,179.5,179.49,39.54]
[1753062618391,6.42948828,179.5,179.48,0.03]
[1753062618591,6.42948828,179.49,179.48,0.03]
[1753062619585,5.72948828,179.49,179.48,0.03]
[1753062619784,5.72948828,179.5,179.48,0.03]
[1753062620022,5.72948828,179.5,179.49,39.54]
[1753062620899,5.72948828,179.5,179.49,126.94]
[1753062621489,0.7,179.55,179.49,45.80128835]
[1753062621697,5.72948828,179.54,179.52,26.0]
[1753062621898,5.72948828,179.54,179.53,39.56]
[1753062622312,0.7,179.54,179.53,39.56]
[1753062622796,5.72948828,179.55,179.53,39.56]
[1753062622996,6.42948828,179.55,179.53,39.56]
[1753062623217,0.7,179.55,179.53,39.56]
[1753062623830,3.51485945,179.56,179.53,39.56]
[1753062624133,3.51485945,179.57,179.53,40.25]
[1753062625129,3.57485945,179.59,179.54,1.24697894]
[1753062625302,4.21485945,179.58,179.55,39.54]
[1753062625498,0.7,179.57,179.56,39.54]
[1753062625713,4.21485945,179.57,179.56,39.54]
[1753062626516,0.7,179.57,179.56,39.54]
[1753062626725,4.21485945,179.57,179.56,39.54]
[1753062627313,0.06,179.59,179.56,39.54]
[1753062627531,0.7,179.58,179.56,39.54]
[1753062628031,3.57485945,179.59,179.56,39.54]
[1753062628200,0.06,179.59,179.56,45.10912668]
[1753062628398,0.06,179.59,179.56,45.79912668]
[1753062629415,3.57485945,179.59,179.56,39.54]
[1753062629717,0.06,179.59,179.58,26.0]
[1753062629923,0.06,179.59,179.58,75.33340828]
[1753062630501,0.06,179.59,179.58,71.81854883]
[1753062630930,0.06,179.59,179.58,75.33340828]
[1753062631143,0.06,179.59,179.58,75.89026316]
[1753062632525,0.06,179.59,179.58,180.07494713]
[1753062632701,0.06,179.59,179.58,179.51809225]
[1753062632901,0.06,179.59,179.58,183.8518575]
[1753062633904,0.06,179.59,179.58,179.51809225]
[1753062634322,0.06,179.59,179.58,159.21854883]
[1753062634712,0.06,179.59,179.58,162.73340828]
[1753062635224,0.06,179.59,179.58,196.18340828]
[1753062635541,0.06,179.59,179.58,152.94]
[1753062636432,3.57485945,179.59,179.58,126.94]
[1753062636734,0.06,179.59,179.58,132.50854883]
[1753062636901,0.06,179.59,179.58,152.94]
[1753062637105,3.57485945,179.59,179.58,126.94]
[1753062637355,4.27485945,179.59,179.58,126.94]
[1753062637530,3.57485945,179.59,179.58,126.94]
[1753062638329,0.06,179.59,179.58,126.94]
[1753062638924,0.06,179.59,179.58,133.19854883]
[1753062639222,0.06,179.59,179.58,45.79854883]
[1753062639423,0.06,179.59,179.58,154.05494713]
[1753062639652,0.06,179.59,179.58,153.49809225]
[1753062639850,0.06,179.59,179.58,186.89809225]
[1753062640660,1e-08,179.59,179.58,186.89809225]
[1753062641019,3.51485945,179.69,179.62,42.78468397]
[1753062641249,3.51485945,179.69,179.61,26.0]
[1753062641250,3.51485945,179.69,179.66,26.0]
[1753062641557,3.51485945,179.69,179.67,39.54]
[1753062641867,3.51485945,179.68,179.67,39.54]
[1753062642043,0.7,179.69,179.67,39.54]
[1753062642224,0.7,179.72,179.67,45.10568825]
[1753062642424,3.51485945,179.7,179.67,45.10568825]
[1753062643452,3.51485945,179.72,179.67,45.82568825]
[1753062643626,3.51485945,179.72,179.68,0.72]
[1753062643829,3.51485945,179.72,179.7,26.0]
[1753062644035,3.51485945,179.72,179.71,39.52]
[1753062644759,0.66,179.74,179.71,39.52]
[1753062644926,1.5114,179.77,179.71,39.52]
[1753062644927,0.66,179.77,179.71,45.08450575]
[1753062645129,3.51485945,179.75,179.71,39.52]
[1753062645456,4.17485945,179.75,179.71,39.52]
[1753062645628,3.51485945,179.74,179.71,39.52]
[1753062645834,4.17485945,179.74,179.71,39.52]
[1753062646228,3.51485945,179.73,179.71,39.52]
[1753062646458,3.51485945,179.73,179.72,0.5]
[1753062646655,0.66,179.77,179.72,6.06413026]
[1753062646959,31.17075945,179.82,179.72,6.06413026]
[1753062646960,3.51485945,179.74,179.73,39.54]
[1753062647381,0.66,179.76,179.73,39.54]
[1753062647530,3.51485945,179.75,179.73,39.54]
[1753062647930,4.17485945,179.75,179.73,39.54]
[1753062648457,3.51485945,179.75,179.73,39.54]
[1753062649360,3.51485945,179.77,179.75,26.0]
[1753062649652,3.51485945,179.77,179.76,39.52]
[1753062650050,4.17485945,179.77,179.76,39.52]
[1753062651456,3.51485945,179.77,179.76,39.52]
[1753062651860,4.17485945,179.77,179.76,39.52]
[1753062653157,4.17485945,179.77,179.72,26.5]
[1753062653345,5.56143944,179.81,179.72,26.5]
[1753062653346,3.51485945,179.74,179.73,39.52]
[1753062654134,4.17485945,179.74,179.72,0.5]
[1753062654353,0.66,179.73,179.72,0.5]
[1753062654549,4.17485945,179.73,179.72,40.0]
[1753062655147,0.66,179.75,179.72,40.0]
[1753062655346,4.17485945,179.74,179.72,40.0]
[1753062656849,3.51485945,179.73,179.72,40.0]
[1753062657745,4.17485945,179.73,179.72,40.0]
[1753062659960,0.66,179.73,179.72,40.0]
[1753062660166,4.17485945,179.73,179.72,40.0]
[1753062660372,3.51485945,179.74,179.72,40.0]
[1753062660744,0.66,179.78,179.75,26.0]
[1753062660941,3.51485945,179.79,179.76,39.5]
[1753062661142,3.51485945,179.77,179.76,39.5]
[1753062661343,0.66,179.77,179.73,26.0]
[1753062661537,0.66,179.77,179.72,0.5]
[1753062661769,3.51485945,179.73,179.72,0.5]
[1753062661952,4.17485945,179.73,179.72,40.0]
[1753062662157,7.6897189,179.73,179.72,40.0]
[1753062662642,4.17485945,179.73,179.72,40.0]
[1753062663672,3.51485945,179.73,179.72,40.0]
[1753062663877,4.17485945,179.73,179.72,40.0]
[1753062665074,3.51485945,179.73,179.72,40.0]
[1753062665291,3.51485945,179.74,179.72,40.0]
[1753062665444,3.51485945,179.74,179.72,40.72]
[1753062665647,0.66,179.78,179.73,0.72]
[1753062665848,3.51485945,179.76,179.74,39.56]
[1753062666777,3.51485945,179.75,179.74,39.56]
[1753062666955,27.5545,179.83,179.74,127.78]
[1753062667273,3.51485945,179.77,179.74,127.78]
[1753062667469,3.51485945,179.76,179.74,127.78]
[1753062668471,3.51485945,179.78,179.75,0.72]
[1753062668677,3.51485945,179.78,179.76,39.56]
[1753062669377,3.51485945,179.77,179.76,39.56]
[1753062670149,4.17485945,179.77,179.76,39.56]
[1753062670374,4.17485945,179.77,179.76,127.06]
[1753062672376,4.17485945,179.77,179.76,127.04]
[1753062672580,4.17485945,179.77,179.76,39.54]
[1753062672875,4.17485945,179.77,179.75,39.54]
[1753062673173,4.17485945,179.76,179.75,39.54]
[1753062674476,0.66,179.76,179.75,39.54]
[1753062674684,3.51485945,179.76,179.75,39.54]
[1753062675059,3.51485945,179.79,179.75,127.74]
[1753062675262,3.51485945,179.8,179.76,40.3062]
[1753062675462,3.51485945,179.81,179.77,40.24]
[1753062675679,0.66,179.84,179.78,0.7]
[1753062675875,3.51485945,179.8,179.79,39.52]
[1753062676185,3.51485945,179.8,179.79,127.02]
[1753062676485,4.17485945,179.8,179.79,127.02]
[1753062680572,3.51485945,179.8,179.79,127.02]
[1753062681380,3.51485945,179.8,179.79,127.52]
[1753062682176,3.51485945,179.81,179.79,128.22]
[1753062683782,0.66,179.86,179.8,0.7]
[1753062683982,3.51485945,179.83,179.81,39.5]
[1753062684572,3.51485945,179.83,179.82,0.7]
[1753062685075,3.51485945,179.83,179.81,39.5]
[1753062685393,3.51485945,179.82,179.81,39.5]
[1753062685574,3.51485945,179.82,179.81,127.0]
[1753062690563,0.66,179.84,179.81,127.0]
[1753062690897,0.66,179.86,179.81,127.7]
[1753062691062,3.51485945,179.84,179.82,0.7]
[1753062691266,3.51485945,179.84,179.83,39.48]
[1753062691897,4.17485945,179.84,179.83,39.48]
[1753062696198,4.17485945,179.84,179.83,126.98]
[1753062696494,13.2503118,179.84,179.79,88.0]
[1753062696678,3.51485945,179.8,179.79,88.0]
[1753062696869,3.51485945,179.8,179.79,127.48]
[1753062697074,4.17485945,179.8,179.77,87.5]
[1753062697286,3.51485945,179.78,179.76,39.48]
[1753062697490,4.17485945,179.77,179.72,28.53389355]